fUST/lending_fUST_20250702
["ID","MTS","AMOUNT","RATE_DAILY","PERIOD"]
[368990900,1751427047413,-886.62,0.00018665,2]
[368990902,1751427047422,-460.0,0.00018665,2]
[368990904,1751427047432,-460.0,0.00018665,2]
[368990906,1751427047441,-460.0,0.00018665,2]
[368990908,1751427047451,-963.68,0.00018665,2]
[368990910,1751427047460,-460.0,0.00018665,2]
[368990912,1751427047470,-460.0,0.00018665,2]
[368990914,1751427047479,-460.0,0.00018665,2]
[368990916,1751427047489,-492.1394432,0.00018667,2]
[368990918,1751427047499,-460.0,0.00018667,2]
[368990920,1751427047508,-460.0,0.00018667,2]
[368990922,1751427047517,-460.0,0.00018667,2]
[368990924,1751427047526,-460.0,0.00018667,2]
[368990926,1751427047536,-460.0,0.00018667,2]
[368990928,1751427047545,-460.0,0.00018667,2]
[368990930,1751427047555,-460.0,0.00018667,2]
[368990933,1751427047564,-461.29,0.00018667,2]
[368990935,1751427047573,-460.0,0.00018667,2]
[368990936,1751427047583,-460.0,0.00018667,2]
[368990939,1751427047592,-1552.17,0.00018667,2]
[368990941,1751427047601,-460.0,0.00018667,2]
[368990943,1751427047611,-460.0,0.00018667,2]
[368990945,1751427047621,-152.737831,0.00018667,2]
[368990947,1751427047630,-151.0,0.00018667,2]
[368990949,1751427047639,-460.0,0.00018667,2]
[368990951,1751427047649,-485.81,0.00018667,2]
[368990953,1751427047658,-199.70354653,0.00018667,2]
[368990955,1751427047667,-460.0,0.00018667,2]
[368990957,1751427047677,-460.0,0.00018667,2]
[368990959,1751427047687,-685.5,0.00018667,2]
[368990961,1751427047696,-460.0,0.00018667,2]
[368990963,1751427047705,-460.0,0.00018667,2]
[368990965,1751427047714,-460.0,0.00018667,2]
[368990967,1751427047725,-460.0,0.00018667,2]
[368990969,1751427047734,-353.694883,0.00018667,2]
[368990971,1751427047744,-353.694883,0.00018667,2]
[368990973,1751427047753,-460.0,0.00018671,2]
[368990975,1751427047763,-2604.95,0.00018671,2]
[368990977,1751427047773,-460.0,0.00018671,2]
[368990980,1751427047783,-460.0,0.00018671,2]
[368990982,1751427047792,-610.35,0.00018671,2]
[368990984,1751427047801,-460.0,0.00018671,2]
[368990986,1751427047811,-807.87,0.00018671,2]
[368990988,1751427047820,-573.52,0.00018671,2]
[368990990,1751427047830,-460.0,0.00018671,2]
[368990992,1751427047840,-460.0,0.00018671,2]
[368990994,1751427047849,-1175.01,0.00018671,2]
[368990996,1751427047859,-460.0,0.00018671,2]
[368990998,1751427047868,-868.33,0.00018671,2]
[368991000,1751427047877,-768.22,0.00018671,2]
[368991002,1751427047887,-1842.7429005,0.00018686,2]
[368991004,1751427047896,-508.63655602,0.00018716,2]
[368991006,1751427047905,-2251.15330687,0.00018728,2]
[368991008,1751427047914,-460.0,0.00018767,2]
[368991010,1751427047923,-460.0,0.00018767,2]
[368991012,1751427047933,-460.0,0.00018767,2]
[368991014,1751427047942,-460.0,0.00018767,2]
[368991016,1751427047951,-530.04,0.00018767,2]
[368991018,1751427047960,-460.0,0.00018767,2]
[368991020,1751427047968,-577.07611641,0.00018767,2]
[368991022,1751427047978,-460.0,0.00018767,2]
[368991024,1751427047987,-460.0,0.00018767,2]
[368991026,1751427047996,-460.0,0.00018772,2]
[368991028,1751427048005,-2745.66,0.00018899,2]
[368991030,1751427048014,-608.93,0.00018899,2]
[368991032,1751427048024,-460.0,0.00018899,2]
[368991034,1751427048033,-460.0,0.00018899,2]
[368991036,1751427048043,-460.0,0.00018899,2]
[368991038,1751427048053,-460.0,0.00018917,2]
[368991040,1751427048062,-1037.68,0.00018917,2]
[368991042,1751427048073,-1463.07,0.00018917,2]
[368991044,1751427048085,-1865.39,0.00018939,2]
[368991046,1751427048094,-698.42,0.00018939,2]
[368991048,1751427048104,-1579.02,0.00018939,2]
[368991050,1751427048114,-460.0,0.00018939,2]
[368991052,1751427048124,-460.0,0.00018939,2]
[368991054,1751427048134,-776.17,0.00018939,2]
[368991056,1751427048144,-1475.97,0.00018939,2]
[368991058,1751427048155,-151.0,0.00018939,2]
[368991060,1751427048164,-151.0,0.00018939,2]
[368991062,1751427048177,-151.0,0.00018939,2]
[368991065,1751427048187,-1491.72,0.00018939,2]
[368991067,1751427048196,-460.0,0.00018939,2]
[368991069,1751427048205,-886.62,0.00018939,2]
[368991071,1751427048215,-460.0,0.00018939,2]
[368991073,1751427048225,-460.0,0.00018939,2]
[368991075,1751427048234,-460.0,0.00018939,2]
[368991077,1751427048244,-963.68,0.00018939,2]
[368991079,1751427048253,-460.0,0.00018939,2]
[368991081,1751427048263,-460.0,0.00018939,2]
[368991083,1751427048273,-460.0,0.00018939,2]
[368991085,1751427048283,-460.0,0.00018941,2]
[368991087,1751427048293,-460.0,0.00018941,2]
[368991089,1751427048303,-460.0,0.00018941,2]
[368991091,1751427048312,-460.0,0.00018941,2]
[368991093,1751427048322,-460.0,0.00018941,2]
[368991095,1751427048331,-461.29,0.00018941,2]
[368991097,1751427048342,-460.0,0.00018941,2]
[368991099,1751427048352,-460.0,0.00018941,2]
[368991101,1751427048362,-1552.17,0.00018941,2]
[368991103,1751427048371,-460.0,0.00018941,2]
[368991105,1751427048381,-460.0,0.00018941,2]
[368991107,1751427048390,-460.0,0.00018941,2]
[368991109,1751427048400,-485.81,0.00018941,2]
[368991111,1751427048409,-460.0,0.00018941,2]
[368991113,1751427048419,-460.0,0.00018941,2]
[368991115,1751427048429,-685.5,0.00018941,2]
[368991117,1751427048440,-460.0,0.00018941,2]
[368991119,1751427048449,-594.91918043,0.00018941,2]
[368991121,1751427048459,-460.0,0.00018941,2]
[368991123,1751427048469,-460.0,0.00018941,2]
[368991126,1751427048479,-460.0,0.00018945,2]
[368991128,1751427048490,-151.0,0.00018945,2]
[368991130,1751427048500,-2604.95,0.00018945,2]
[368991132,1751427048509,-460.0,0.00018945,2]
[368991134,1751427048519,-610.35,0.00018945,2]
[368991136,1751427048530,-460.0,0.00018945,2]
[368991138,1751427048540,-807.87,0.00018945,2]
[368991140,1751427048550,-573.52,0.00018945,2]
[368991142,1751427048561,-460.0,0.00018945,2]
[368991144,1751427048571,-460.0,0.00018945,2]
[368991146,1751427048581,-1175.01,0.00018945,2]
[368991148,1751427048591,-460.0,0.00018945,2]
[368991158,1751427048668,-404.704959,0.00018945,2]
[368991160,1751427048686,-404.704959,0.00018945,2]
[368991162,1751427048696,-868.33,0.00018945,2]
[368991164,1751427048706,-768.22,0.00018945,2]
[368991166,1751427048716,-500.0,0.00018991,2]
[368991168,1751427048726,-500.0,0.00018991,2]
[368991170,1751427048735,-2251.15330687,0.00019003,2]
[368991172,1751427048746,-230.34465076,0.0001902,2]
[368991174,1751427048756,-12573.65100011,0.0001902,2]
[368991176,1751427048767,-160.0,0.0001902,2]
[368991178,1751427048778,-215.04179405,0.0001902,2]
[368991180,1751427048788,-847.65867985,0.0001902,2]
[368991182,1751427048798,-213.90888375,0.0001902,2]
[368991184,1751427048810,-837.27862799,0.0001902,2]
[368991186,1751427048820,-160.0,0.0001902,2]
[368991188,1751427048829,-160.0,0.0001902,2]
[368991190,1751427048839,-160.0,0.0001902,2]
[368991192,1751427048849,-160.0,0.0001902,2]
[368991194,1751427048858,-160.0,0.0001902,2]
[368991196,1751427048868,-160.0,0.0001902,2]
[368991198,1751427048878,-460.0,0.00019041,2]
[368991201,1751427048888,-460.0,0.00019041,2]
[368991203,1751427048898,-460.0,0.00019041,2]
[368991204,1751427048907,-460.0,0.00019041,2]
[368991206,1751427048917,-460.0,0.00019041,2]
[368991208,1751427048927,-460.0,0.00019041,2]
[368991211,1751427048939,-151.0,0.00019043,2]
[368991212,1751427048949,-217.424729,0.00019043,2]
[368991215,1751427048959,-246.687953,0.00019043,2]
[368991217,1751427048970,-193.223888,0.00019043,2]
[368991219,1751427048979,-246.687953,0.00019043,2]
[368991220,1751427048989,-193.223888,0.00019043,2]
[368991222,1751427048998,-151.0,0.00019043,2]
[368991224,1751427049007,-151.418913,0.00019043,2]
[368991226,1751427049017,-1587.09639,0.00019043,2]
[368991228,1751427049026,-1587.09639,0.00019043,2]
[368991230,1751427049035,-151.0,0.00019043,2]
[368991232,1751427049045,-151.0,0.00019043,2]
[368991234,1751427049055,-151.0,0.00019043,2]
[368991236,1751427049064,-151.0,0.00019043,2]
[368991238,1751427049076,-151.0,0.00019043,2]
[368991240,1751427049090,-151.0,0.00019043,2]
[368991242,1751427049100,-460.0,0.00019046,2]
[368991245,1751427049110,-2745.66,0.00019173,2]
[368991247,1751427049121,-608.93,0.00019173,2]
[368991248,1751427049130,-460.0,0.00019173,2]
[368991251,1751427049140,-460.0,0.00019173,2]
[368991253,1751427049150,-460.0,0.00019173,2]
[368991254,1751427049160,-151.0,0.00019178,2]
[368991256,1751427049170,-180.061695,0.00019178,2]
[368991258,1751427049179,-151.0,0.00019178,2]
[368991261,1751427049189,-151.0,0.00019178,2]
[368991263,1751427049199,-169.014371,0.00019178,2]
[368991264,1751427049208,-151.0,0.00019178,2]
[368991266,1751427049218,-169.014371,0.00019178,2]
[368991268,1751427049227,-151.0,0.00019178,2]
[368991270,1751427049237,-151.0,0.00019178,2]
[368991273,1751427049247,-151.0,0.00019178,2]
[368991274,1751427049257,-152.327794,0.00019178,2]
[368991277,1751427049267,-152.327794,0.00019178,2]
[368991279,1751427049278,-154.406951,0.00019178,2]
[368991280,1751427049287,-154.406951,0.00019178,2]
[368991282,1751427049296,-151.0,0.00019178,2]
[368991284,1751427049306,-151.0,0.00019178,2]
[368991286,1751427049316,-151.0,0.00019178,2]
[368991288,1751427049326,-151.0,0.00019178,2]
[368991290,1751427049335,-353.694883,0.00019178,2]
[368991292,1751427049345,-175.590595,0.00019178,2]
[368991294,1751427049354,-353.694883,0.00019178,2]
[368991296,1751427049364,-175.590595,0.00019178,2]
[368991298,1751427049374,-54255.2204579,0.00019178,2]
[368991300,1751427049383,-176.502852,0.00019178,2]
[368991302,1751427049393,-460.0,0.00019191,2]
[368991304,1751427049403,-1037.68,0.00019191,2]
[368991306,1751427049412,-1463.07,0.00019191,2]
[368991308,1751427049422,-1865.39,0.00019213,2]
[368991311,1751427049432,-698.42,0.00019213,2]
[368991313,1751427049441,-1579.02,0.00019213,2]
[368991315,1751427049451,-460.0,0.00019213,2]
[368991317,1751427049461,-776.17,0.00019213,2]
[368991319,1751427049470,-1475.97,0.00019213,2]
[368991321,1751427049481,-1491.72,0.00019213,2]
[368991323,1751427049491,-460.0,0.00019213,2]
[368991325,1751427049501,-886.62,0.00019213,2]
[368991327,1751427049510,-460.0,0.00019213,2]
[368991329,1751427049520,-460.0,0.00019213,2]
[368991331,1751427049529,-460.0,0.00019213,2]
[368991333,1751427049539,-963.68,0.00019213,2]
[368991335,1751427049548,-460.0,0.00019213,2]
[368991337,1751427049557,-460.0,0.00019213,2]
[368991339,1751427049566,-460.0,0.00019213,2]
[368991341,1751427049576,-400.45057112,0.00019215,2]
[368991343,1751427049585,-460.0,0.00019215,2]
[368991344,1751427049595,-460.0,0.00019215,2]
[368991347,1751427049605,-460.0,0.00019215,2]
[368991348,1751427049614,-461.29,0.00019215,2]
[368991350,1751427049623,-460.0,0.00019215,2]
[368991352,1751427049632,-460.0,0.00019215,2]
[368991354,1751427049641,-1552.17,0.00019215,2]
[368991356,1751427049650,-460.0,0.00019215,2]
[368991357,1751427049660,-508.82566183,0.00019215,2]
[368991359,1751427049670,-460.0,0.00019215,2]
[368991361,1751427049680,-485.81,0.00019215,2]
[368991363,1751427049689,-460.0,0.00019215,2]
[368991365,1751427049699,-685.5,0.00019215,2]
[368991367,1751427049709,-460.0,0.00019215,2]
[368991369,1751427049719,-460.0,0.00019215,2]
[368991371,1751427049728,-460.0,0.00019215,2]
[368991373,1751427049738,-2604.95,0.00019219,2]
[368991375,1751427049747,-460.0,0.00019219,2]
[368991377,1751427049757,-610.35,0.00019219,2]
[368991379,1751427049767,-460.0,0.00019219,2]
[368991381,1751427049776,-807.87,0.00019219,2]
[368991383,1751427049786,-573.52,0.00019219,2]
[368991384,1751427049795,-460.0,0.00019219,2]
[368991387,1751427049806,-566.64,0.00019219,2]
[368991389,1751427049815,-1175.01,0.00019219,2]
[368991390,1751427049825,-460.0,0.00019219,2]
[368991392,1751427049834,-868.33,0.00019219,2]
[368991394,1751427049844,-768.22,0.00019219,2]
[368991396,1751427049853,-292.52555041,0.00019272,2]
[368991398,1751427049864,-1842.7429005,0.00019273,2]
[368991400,1751427049874,-2251.15330687,0.00019279,2]
[368991402,1751427049884,-261.57,0.00019315,2]
[368991404,1751427049894,-460.0,0.00019315,2]
[368991414,1751427049977,-460.0,0.00019315,2]
[368991416,1751427049986,-460.0,0.00019315,2]
[368991418,1751427049997,-460.0,0.00019315,2]
[368991420,1751427050007,-460.0,0.00019315,2]
[368991422,1751427050018,-460.0,0.0001932,2]
[368991424,1751427050027,-151.0,0.00019329,2]
[368991426,1751427050036,-151.0,0.00019329,2]
[368991428,1751427050046,-151.0,0.00019329,2]
[368991430,1751427050055,-151.0,0.00019329,2]
[368991432,1751427050064,-449.201349,0.00019329,2]
[368991433,1751427050073,-647.508668,0.00019329,2]
[368991435,1751427050086,-1092.731498,0.00019329,2]
[368991437,1751427050096,-1092.731498,0.00019329,2]
[368991439,1751427050105,-1093.173569,0.00019329,2]
[368991441,1751427050114,-1093.173569,0.00019329,2]
[368991443,1751427050123,-152.087867,0.00019329,2]
[368991445,1751427050134,-151.0,0.00019329,2]
[368991447,1751427050144,-246.687953,0.00019329,2]
[368991449,1751427050154,-193.223888,0.00019329,2]
[368991451,1751427050164,-246.687953,0.00019329,2]
[368991452,1751427050174,-193.223888,0.00019329,2]
[368991455,1751427050184,-151.0,0.00019329,2]
[368991456,1751427050194,-1587.09639,0.00019329,2]
[368991458,1751427050203,-1587.09639,0.00019329,2]
[368991460,1751427050212,-151.0,0.00019329,2]
[368991462,1751427050221,-151.0,0.00019329,2]
[368991464,1751427050231,-151.844872,0.00019329,2]
[368991466,1751427050240,-151.0,0.00019329,2]
[368991468,1751427050250,-151.0,0.00019329,2]
[368991470,1751427050260,-151.0,0.00019329,2]
[368991472,1751427050270,-151.0,0.00019329,2]
[368991474,1751427050279,-151.0,0.00019329,2]
[368991476,1751427050290,-151.0,0.00019329,2]
[368991478,1751427050299,-404.704959,0.00019329,2]
[368991480,1751427050308,-404.704959,0.00019329,2]
[368991482,1751427050318,-48224.83153581,0.00019329,2]
[368991484,1751427050328,-150.69802767,0.00019373,2]
[368991486,1751427050339,-2745.66,0.00019447,2]
[368991488,1751427050348,-608.93,0.00019447,2]
[368991490,1751427050357,-460.0,0.00019447,2]
[368991492,1751427050366,-460.0,0.00019447,2]
[368991494,1751427050376,-460.0,0.00019447,2]
[368991496,1751427050385,-1037.68,0.00019465,2]
[368991498,1751427050395,-1463.07,0.00019465,2]
[368991500,1751427050404,-1865.39,0.00019487,2]
[368991502,1751427050414,-698.42,0.00019487,2]
[368991504,1751427050423,-1579.02,0.00019487,2]
[368991506,1751427050432,-776.17,0.00019487,2]
[368991508,1751427050441,-1475.97,0.00019487,2]
[368991510,1751427050452,-1491.72,0.00019487,2]
[368991512,1751427050461,-886.62,0.00019487,2]
[368991514,1751427050471,-553.08,0.00019487,2]
[368991516,1751427050481,-460.0,0.00019487,2]
[368991518,1751427050490,-460.0,0.00019487,2]
[368991520,1751427050500,-963.68,0.00019487,2]
[368991522,1751427050510,-460.0,0.00019487,2]
[368991524,1751427050519,-460.0,0.00019487,2]
[368991525,1751427050528,-460.0,0.00019487,2]
[368991527,1751427050537,-251.72,0.00019489,2]
[368991529,1751427050546,-460.0,0.00019489,2]
[368991531,1751427050555,-460.0,0.00019489,2]
[368991533,1751427050565,-461.29,0.00019489,2]
[368991535,1751427050574,-460.0,0.00019489,2]
[368991537,1751427050585,-460.0,0.00019489,2]
[368991539,1751427050595,-1552.17,0.00019489,2]
[368991541,1751427050605,-460.0,0.00019489,2]
[368991543,1751427050614,-485.81,0.00019489,2]
[368991545,1751427050623,-460.0,0.00019489,2]
[368991547,1751427050633,-685.5,0.00019489,2]
[368991549,1751427050643,-460.0,0.00019489,2]
[368991551,1751427050652,-460.0,0.00019489,2]
[368991553,1751427050662,-2604.95,0.00019493,2]
[368991555,1751427050671,-460.0,0.00019493,2]
[368991557,1751427050680,-610.35,0.00019493,2]
[368991559,1751427050690,-460.0,0.00019493,2]
[368991561,1751427050701,-807.87,0.00019493,2]
[368991563,1751427050710,-573.52,0.00019493,2]
[368991565,1751427050720,-486.07290917,0.00019493,2]
[368991567,1751427050730,-1175.01,0.00019493,2]
[368991568,1751427050739,-460.0,0.00019493,2]
[368991570,1751427050749,-868.33,0.00019493,2]
[368991573,1751427050760,-768.22,0.00019493,2]
[368991574,1751427050769,-1000.0,0.00019539,2]
[368991576,1751427050779,-341.28550224,0.00019539,2]
[368991578,1751427050789,-2251.15330687,0.00019555,2]
[368991580,1751427050799,-430.84,0.00019589,2]
[368991582,1751427050809,-460.0,0.00019589,2]
[368991584,1751427050818,-179.17838531,0.00019589,2]
[368991586,1751427050827,-460.0,0.00019589,2]
[368991588,1751427050837,-460.0,0.00019589,2]
[368991590,1751427050846,-460.0,0.00019594,2]
[368991592,1751427050856,-171.36978332,0.00019691,2]
[368991594,1751427050868,-2745.66,0.00019721,2]
[368991596,1751427050878,-608.93,0.00019721,2]
[368991598,1751427050887,-460.0,0.00019721,2]
[368991599,1751427050897,-460.0,0.00019721,2]
[368991601,1751427050906,-1037.68,0.00019739,2]
[368991603,1751427050915,-1463.07,0.00019739,2]
[368991605,1751427050925,-1865.39,0.00019761,2]
[368991607,1751427050934,-698.42,0.00019761,2]
[368991609,1751427050945,-1579.02,0.00019761,2]
[368991611,1751427050954,-776.17,0.00019761,2]
[368991613,1751427050966,-1475.97,0.00019761,2]
[368991614,1751427050977,-1491.72,0.00019761,2]
[368991616,1751427050987,-151.0,0.00019761,2]
[368991618,1751427050996,-886.62,0.00019761,2]
[368991620,1751427051006,-460.0,0.00019761,2]
[368991622,1751427051016,-460.0,0.00019761,2]
[368991624,1751427051025,-963.68,0.00019761,2]
[368991626,1751427051034,-460.0,0.00019761,2]
[368991628,1751427051045,-151.0,0.00019761,2]
[368991630,1751427051054,-353.694883,0.00019761,2]
[368991632,1751427051064,-175.590595,0.00019761,2]
[368991634,1751427051074,-460.0,0.00019761,2]
[368991641,1751427051086,-353.694883,0.00019761,2]
[368991642,1751427051163,-175.590595,0.00019761,2]
[368991643,1751427051172,-460.0,0.00019763,2]
[368991644,1751427051181,-460.0,0.00019763,2]
[368991645,1751427051191,-461.29,0.00019763,2]
[368991646,1751427051200,-460.0,0.00019763,2]
[368991647,1751427051209,-460.0,0.00019763,2]
[368991648,1751427051219,-1552.17,0.00019763,2]
[368991649,1751427051228,-485.81,0.00019763,2]
[368991650,1751427051238,-685.5,0.00019763,2]
[368991651,1751427051247,-460.0,0.00019763,2]
[368991652,1751427051256,-460.0,0.00019763,2]
[368991653,1751427051265,-2604.95,0.00019767,2]
[368991654,1751427051274,-460.0,0.00019767,2]
[368991655,1751427051284,-610.35,0.00019767,2]
[368991656,1751427051294,-460.0,0.00019767,2]
[368991657,1751427051304,-807.87,0.00019767,2]
[368991658,1751427051316,-573.52,0.00019767,2]
[368991659,1751427051325,-1175.01,0.00019767,2]
[368991660,1751427051335,-460.0,0.00019767,2]
[368991661,1751427051345,-868.33,0.00019767,2]
[368991662,1751427051354,-768.22,0.00019767,2]
[368991663,1751427051363,-2251.15330687,0.00019831,2]
[368991664,1751427051372,-460.0,0.00019863,2]
[368991665,1751427051381,-420.16695075,0.00019863,2]
[368991667,1751427051391,-460.0,0.00019863,2]
[368991668,1751427051400,-460.0,0.00019868,2]
[368991669,1751427051409,-2745.66,0.00019995,2]
[368991671,1751427051418,-608.93,0.00019995,2]
[368991673,1751427051428,-460.0,0.00019995,2]
[368991675,1751427051437,-460.0,0.00019995,2]
[368991677,1751427051446,-7777.0,0.0002,7]
[368991679,1751427051456,-1037.68,0.00020013,2]
[368991681,1751427051465,-1463.07,0.00020013,2]
[368991683,1751427051474,-1865.39,0.00020035,2]
[368991685,1751427051484,-169.014371,0.00020035,2]
[368991687,1751427051494,-151.0,0.00020035,2]
[368991689,1751427051503,-169.014371,0.00020035,2]
[368991691,1751427051512,-151.0,0.00020035,2]
[368991693,1751427051521,-171.493001,0.00020035,2]
[368991695,1751427051531,-151.0,0.00020035,2]
[368991697,1751427051540,-152.327794,0.00020035,2]
[368991699,1751427051550,-152.327794,0.00020035,2]
[368991701,1751427051559,-154.406951,0.00020035,2]
[368991703,1751427051568,-154.406951,0.00020035,2]
[368991705,1751427051578,-151.0,0.00020035,2]
[368991707,1751427051587,-151.0,0.00020035,2]
[368991709,1751427051596,-698.42,0.00020035,2]
[368991711,1751427051605,-1579.02,0.00020035,2]
[368991713,1751427051615,-776.17,0.00020035,2]
[368991715,1751427051624,-1475.97,0.00020035,2]
[368991717,1751427051634,-1491.72,0.00020035,2]
[368991719,1751427051643,-886.62,0.00020035,2]
[368991721,1751427051653,-460.0,0.00020035,2]
[368991723,1751427051662,-212.79,0.00020035,2]
[368991725,1751427051671,-963.68,0.00020035,2]
[368991727,1751427051681,-242.48380523,0.00020035,2]
[368991730,1751427051695,-460.0,0.00020037,2]
[368991732,1751427051704,-461.29,0.00020037,2]
[368991734,1751427051714,-417.48616467,0.00020037,2]
[368991736,1751427051724,-460.0,0.00020037,2]
[368991738,1751427051733,-1552.17,0.00020037,2]
[368991740,1751427051743,-485.81,0.00020037,2]
[368991742,1751427051753,-685.5,0.00020037,2]
[368991744,1751427051762,-460.0,0.00020037,2]
[368991746,1751427051771,-151.0,0.00020041,2]
[368991747,1751427051780,-2604.95,0.00020041,2]
[368991749,1751427051789,-460.0,0.00020041,2]
[368991751,1751427051799,-610.35,0.00020041,2]
[368991753,1751427051809,-460.0,0.00020041,2]
[368991756,1751427051818,-807.87,0.00020041,2]
[368991758,1751427051829,-573.52,0.00020041,2]
[368991760,1751427051838,-1175.01,0.00020041,2]
[368991762,1751427051847,-460.0,0.00020041,2]
[368991764,1751427051857,-868.33,0.00020041,2]
[368991766,1751427051867,-768.22,0.00020041,2]
[368991768,1751427051877,-179.64071856,0.00020061,2]
[368991770,1751427051886,-402.92971106,0.00020087,2]
[368991771,1751427051895,-2251.15330687,0.00020107,2]
[368991773,1751427051905,-527.38,0.00020137,2]
[368991775,1751427051914,-460.0,0.00020137,2]
[368991777,1751427051923,-151.0,0.00020139,2]
[368991779,1751427051933,-151.0,0.00020139,2]
[368991781,1751427051942,-460.0,0.00020142,2]
[368991783,1751427051951,-151.0,0.00020142,2]
[368991785,1751427051962,-151.0,0.00020142,2]
[368991788,1751427051972,-296.428669,0.00020187,2]
[368991789,1751427051981,-2745.66,0.00020269,2]
[368991791,1751427051989,-608.93,0.00020269,2]
[368991794,1751427052000,-460.0,0.00020269,2]
[368991795,1751427052009,-460.0,0.00020269,2]
[368991797,1751427052018,-587.0,0.00020273,2]
[368991799,1751427052028,-1037.68,0.00020287,2]
[368991802,1751427052038,-1463.07,0.00020287,2]
[368991804,1751427052047,-171.36978332,0.000203,5]
[368991805,1751427052056,-1865.39,0.00020309,2]
[368991807,1751427052066,-698.42,0.00020309,2]
[368991809,1751427052075,-1579.02,0.00020309,2]
[368991811,1751427052090,-776.17,0.00020309,2]
[368991813,1751427052099,-1475.97,0.00020309,2]
[368991815,1751427052108,-1491.72,0.00020309,2]
[368991817,1751427052118,-886.62,0.00020309,2]
[368991819,1751427052129,-202.61,0.00020309,2]
[368991821,1751427052138,-963.68,0.00020309,2]
[368991823,1751427052148,-460.0,0.00020311,2]
[368991825,1751427052159,-461.29,0.00020311,2]
[368991834,1751427052236,-460.0,0.00020311,2]
[368991836,1751427052246,-1552.17,0.00020311,2]
[368991838,1751427052256,-485.81,0.00020311,2]
[368991840,1751427052266,-685.5,0.00020311,2]
[368991843,1751427052276,-179.3,0.00020311,2]
[368991845,1751427052285,-2604.95,0.00020315,2]
[368991846,1751427052294,-460.0,0.00020315,2]
[368991849,1751427052304,-610.35,0.00020315,2]
[368991851,1751427052314,-460.0,0.00020315,2]
[368991853,1751427052323,-807.87,0.00020315,2]
[368991855,1751427052332,-573.52,0.00020315,2]
[368991857,1751427052346,-1175.01,0.00020315,2]
[368991859,1751427052356,-460.0,0.00020315,2]
[368991861,1751427052365,-868.33,0.00020315,2]
[368991863,1751427052375,-768.22,0.00020315,2]
[368991865,1751427052384,-2251.15330687,0.00020383,3]
[368991867,1751427052394,-827.78593242,0.00020411,2]
[368991869,1751427052403,-460.0,0.00020411,2]
[368991871,1751427052412,-151.0,0.00020413,2]
[368991873,1751427052422,-151.0,0.00020413,2]
[368991875,1751427052431,-151.0,0.00020413,2]
[368991876,1751427052440,-472.152101,0.00020416,2]
[368991879,1751427052449,-151.0,0.00020418,2]
[368991880,1751427052458,-151.0,0.00020418,2]
[368991882,1751427052468,-2745.66,0.00020543,2]
[368991884,1751427052477,-608.93,0.00020543,2]
[368991886,1751427052487,-460.0,0.00020543,2]
[368991888,1751427052495,-460.0,0.00020543,2]
[368991890,1751427052505,-1037.68,0.00020561,2]
[368991892,1751427052514,-1463.07,0.00020561,2]
[368991894,1751427052523,-1865.39,0.00020583,2]
[368991896,1751427052533,-698.42,0.00020583,2]